fUSD/lending_fUSD_20260621
["ID","MTS","AMOUNT","RATE_DAILY","PERIOD"]
[425922919,1782036654000,-500.0,0.00027671,2]
[425922918,1782036654000,-500.0,0.00027671,2]
[425922922,1782036654000,-500.0,0.00027671,2]
[425922910,1782036654000,-500.0,0.00027671,2]
[425922926,1782036654000,-486.50312307,0.00027671,2]
[425922930,1782036654000,-500.0,0.00027671,2]
[425922925,1782036654000,-606.02181238,0.00027671,2]
[425922921,1782036654000,-500.0,0.00027671,2]
[425922924,1782036654000,-782.44,0.00027671,2]
[425922928,1782036654000,-8596.43,0.00027671,2]
[425922929,1782036654000,-500.0,0.00027671,2]
[425922931,1782036654000,-4513.58,0.00027671,2]
[425922932,1782036654000,-589.86,0.00027671,2]
[425922907,1782036654000,-640.28589283,0.00027671,2]
[425922935,1782036654000,-500.0,0.00027671,2]
[425922923,1782036654000,-250.66575981,0.00027671,2]
[425922908,1782036654000,-500.0,0.00027671,2]
[425922895,1782036654000,-500.0,0.00027671,2]
[425922909,1782036654000,-500.0,0.00027671,2]
[425922933,1782036654000,-741.55,0.00027671,2]
[425922889,1782036654000,-500.0,0.00027671,2]
[425922890,1782036654000,-500.0,0.00027671,2]
[425922891,1782036654000,-500.0,0.00027671,2]
[425922903,1782036654000,-637.81,0.00027671,2]
[425922892,1782036654000,-500.0,0.00027671,2]
[425922902,1782036654000,-602.27,0.00027671,2]
[425922893,1782036654000,-500.0,0.00027671,2]
[425922896,1782036654000,-500.0,0.00027671,2]
[425922897,1782036654000,-500.0,0.00027671,2]
[425922899,1782036654000,-547.39,0.00027671,2]
[425922901,1782036654000,-500.0,0.00027671,2]
[425922894,1782036654000,-500.0,0.00027671,2]
[425922898,1782036654000,-500.0,0.00027671,2]
[425922900,1782036654000,-514.73,0.00027671,2]
[425922906,1782036654000,-547.19,0.00027671,2]
[425922904,1782036654000,-533.72130013,0.00027671,2]
[425922912,1782036654000,-500.0,0.00027671,2]
[425922913,1782036654000,-500.0,0.00027671,2]
[425922905,1782036654000,-500.0,0.00027671,2]
[425922911,1782036654000,-628.69200536,0.00027671,2]
[425922914,1782036654000,-523.62,0.00027671,2]
[425922938,1782036654000,-500.0,0.00027671,2]
[425922948,1782036654000,-500.0,0.00027671,2]
[425922939,1782036654000,-500.0,0.00027671,2]
[425922964,1782036654000,-3462.02,0.00027671,2]
[425922959,1782036654000,-737.59,0.00027671,2]
[425922967,1782036654000,-500.0,0.00027671,2]
[425922966,1782036654000,-508.58,0.00027671,2]
[425922965,1782036654000,-500.0,0.00027671,2]
[425922969,1782036654000,-500.0,0.00027671,2]
[425922968,1782036654000,-500.0,0.00027671,2]
[425922970,1782036654000,-500.0,0.00027671,2]
[425922971,1782036654000,-500.0,0.00027671,2]
[425922961,1782036654000,-560.95,0.00027671,2]
[425922973,1782036654000,-500.0,0.00027671,2]
[425922976,1782036654000,-500.0,0.00027671,2]
[425922975,1782036654000,-4893.3,0.00027671,2]
[425922974,1782036654000,-4407.46,0.00027671,2]
[425922978,1782036654000,-500.0,0.00027671,2]
[425922977,1782036654000,-7434.82,0.00027671,2]
[425922980,1782036654000,-752.17,0.00027671,2]
[425922983,1782036654000,-500.0,0.00027671,2]
[425922979,1782036654000,-500.0,0.00027671,2]
[425922936,1782036654000,-4904.56,0.00027671,2]
[425922972,1782036654000,-503.69,0.00027671,2]
[425922963,1782036654000,-500.0,0.00027671,2]
[425922982,1782036654000,-4920.34,0.00027671,2]
[425922960,1782036654000,-700.0,0.00027671,2]
[425922934,1782036654000,-8344.59,0.00027671,2]
[425922937,1782036654000,-518.81,0.00027671,2]
[425922940,1782036654000,-544.03,0.00027671,2]
[425922941,1782036654000,-4234.92,0.00027671,2]
[425922943,1782036654000,-500.0,0.00027671,2]
[425922944,1782036654000,-500.0,0.00027671,2]
[425922962,1782036654000,-500.0,0.00027671,2]
[425922947,1782036654000,-340.70358561,0.00027671,2]
[425922946,1782036654000,-4142.16,0.00027671,2]
[425922942,1782036654000,-500.0,0.00027671,2]
[425922945,1782036654000,-5549.57,0.00027671,2]
[425922949,1782036654000,-500.0,0.00027671,2]
[425922956,1782036654000,-500.0,0.00027671,2]
[425922981,1782036654000,-614.43,0.00027671,2]
[425922952,1782036654000,-500.0,0.00027671,2]
[425922953,1782036654000,-500.0,0.00027671,2]
[425922951,1782036654000,-529.95,0.00027671,2]
[425922954,1782036654000,-612.86964462,0.00027671,2]
[425922957,1782036654000,-1121.32,0.00027671,2]
[425922958,1782036654000,-500.0,0.00027671,2]
[425922950,1782036654000,-11591.31,0.00027671,2]
[425922955,1782036654000,-500.0,0.00027671,2]
[425923009,1782036655000,-500.0,0.00027671,2]
[425923008,1782036655000,-500.0,0.00027671,2]
[425923005,1782036655000,-9537.38,0.00027671,2]
[425923010,1782036655000,-513.21174292,0.00027671,2]
[425923011,1782036655000,-1130.75,0.00027671,2]
[425923012,1782036655000,-4116.89,0.00027671,2]
[425923013,1782036655000,-793.21,0.00027671,2]
[425923015,1782036655000,-3648.64,0.00027671,2]
[425923029,1782036655000,-500.0,0.00027671,2]
[425923017,1782036655000,-7006.76,0.00027671,2]
[425923016,1782036655000,-500.0,0.00027671,2]
[425923018,1782036655000,-904.85,0.00027671,2]
[425923021,1782036655000,-500.0,0.00027671,2]
[425923020,1782036655000,-574.59,0.00027671,2]
[425923019,1782036655000,-3690.26,0.00027671,2]
[425923022,1782036655000,-694.24,0.00027671,2]
[425923007,1782036655000,-762.22,0.00027671,2]
[425923014,1782036655000,-500.0,0.00027671,2]
[425923006,1782036655000,-9148.39,0.00027671,2]
[425922992,1782036655000,-500.0,0.00027671,2]
[425923000,1782036655000,-500.0,0.00027671,2]
[425923025,1782036655000,-513.04,0.00027671,2]
[425922984,1782036655000,-500.0,0.00027671,2]
[425922985,1782036655000,-500.0,0.00027671,2]
[425922987,1782036655000,-500.0,0.00027671,2]
[425922986,1782036655000,-6191.78,0.00027671,2]
[425922988,1782036655000,-500.0,0.00027671,2]
[425922990,1782036655000,-8802.4,0.00027671,2]
[425922989,1782036655000,-504.3,0.00027671,2]
[425922991,1782036655000,-3641.08,0.00027671,2]
[425922994,1782036655000,-500.0,0.00027671,2]
[425922993,1782036655000,-1000.0,0.00027671,2]
[425923001,1782036655000,-500.0,0.00027671,2]
[425922995,1782036655000,-500.0,0.00027671,2]
[425922996,1782036655000,-500.0,0.00027671,2]
[425922997,1782036655000,-8686.83,0.00027671,2]
[425923002,1782036655000,-15685.64,0.00027671,2]
[425922998,1782036655000,-500.0,0.00027671,2]
[425922999,1782036655000,-503.44622977,0.00027671,2]
[425923004,1782036655000,-500.0,0.00027671,2]
[425923003,1782036655000,-3642.96,0.00027671,2]
[425923027,1782036655000,-2754.08,0.00027671,2]
[425923028,1782036655000,-500.0,0.00027671,2]
[425923032,1782036655000,-500.0,0.00027671,2]
[425923052,1782036655000,-6610.19,0.00027671,2]
[425923054,1782036655000,-500.0,0.00027671,2]
[425923059,1782036655000,-500.0,0.00027671,2]
[425923053,1782036655000,-10370.49,0.00027671,2]
[425923058,1782036655000,-500.0,0.00027671,2]
[425923057,1782036655000,-500.0,0.00027671,2]
[425923061,1782036655000,-578.58,0.00027671,2]
[425923055,1782036655000,-500.0,0.00027671,2]
[425923047,1782036655000,-500.0,0.00027671,2]
[425923060,1782036655000,-500.0,0.00027671,2]
[425923065,1782036655000,-500.0,0.00027671,2]
[425923063,1782036655000,-5168.02,0.00027671,2]
[425923067,1782036655000,-500.0,0.00027671,2]
[425923066,1782036655000,-1012.47,0.00027671,2]
[425923064,1782036655000,-500.0,0.00027671,2]
[425923069,1782036655000,-500.0,0.00027671,2]
[425923068,1782036655000,-500.0,0.00027671,2]
[425923026,1782036655000,-504.00985971,0.00027671,2]
[425923062,1782036655000,-2245.52,0.00027671,2]
[425923048,1782036655000,-500.0,0.00027671,2]
[425923056,1782036655000,-3409.76,0.00027671,2]
[425923045,1782036655000,-2177.43,0.00027671,2]
[425923031,1782036655000,-6967.46,0.00027671,2]
[425923046,1782036655000,-2750.97,0.00027671,2]
[425923024,1782036655000,-500.0,0.00027671,2]
[425923023,1782036655000,-523.09747319,0.00027671,2]
[425923030,1782036655000,-500.0,0.00027671,2]
[425923040,1782036655000,-58770.661065,0.00027671,2]
[425923039,1782036655000,-913.0,0.00027671,2]
[425923037,1782036655000,-673.1,0.00027671,2]
[425923034,1782036655000,-500.0,0.00027671,2]
[425923036,1782036655000,-4469.05,0.00027671,2]
[425923041,1782036655000,-500.0,0.00027671,2]
[425923033,1782036655000,-500.0,0.00027671,2]
[425923038,1782036655000,-510.83834531,0.00027671,2]
[425923050,1782036655000,-500.0,0.00027671,2]
[425923051,1782036655000,-500.0,0.00027671,2]
[425923043,1782036655000,-500.0,0.00027671,2]
[425923049,1782036655000,-7308.09,0.00027671,2]
[425923035,1782036655000,-500.0,0.00027671,2]
[425923042,1782036655000,-500.0,0.00027671,2]
[425923044,1782036655000,-500.0,0.00027671,2]
[425923105,1782036656000,-500.0,0.00027945,2]
[425923103,1782036656000,-500.0,0.00027945,2]
[425923104,1782036656000,-500.0,0.00027945,2]
[425923099,1782036656000,-399.0,0.00027945,2]
[425923101,1782036656000,-500.0,0.00027945,2]
[425923098,1782036656000,-735.98,0.00027944,2]
[425923102,1782036656000,-500.0,0.00027945,2]
[425923097,1782036656000,-735.98,0.00027944,2]
[425923121,1782036656000,-500.0,0.00027945,2]
[425923106,1782036656000,-500.0,0.00027945,2]
[425923116,1782036656000,-500.0,0.00027945,2]
[425923120,1782036656000,-500.0,0.00027945,2]
[425923118,1782036656000,-500.0,0.00027945,2]
[425923108,1782036656000,-500.0,0.00027945,2]
[425923112,1782036656000,-500.0,0.00027945,2]
[425923114,1782036656000,-500.0,0.00027945,2]
[425923109,1782036656000,-500.0,0.00027945,2]
[425923110,1782036656000,-500.0,0.00027945,2]
[425923113,1782036656000,-662.54,0.00027945,2]
[425923111,1782036656000,-500.0,0.00027945,2]
[425923119,1782036656000,-500.0,0.00027945,2]
[425923123,1782036656000,-500.0,0.00027945,2]
[425923107,1782036656000,-500.0,0.00027945,2]
[425923115,1782036656000,-500.0,0.00027945,2]
[425923100,1782036656000,-250.0,0.00027945,2]
[425923084,1782036656000,-152.0,0.00027802,2]
[425923087,1782036656000,-205.90025614,0.00027845,5]
[425923071,1782036656000,-500.0,0.00027671,2]
[425923072,1782036656000,-1820.63,0.00027671,2]
[425923070,1782036656000,-500.0,0.00027671,2]
[425923073,1782036656000,-500.0,0.00027671,2]
[425923075,1782036656000,-1000.0,0.00027675,2]
[425923079,1782036656000,-500.0,0.00027802,2]
[425923077,1782036656000,-156.84738482,0.00027802,2]
[425923076,1782036656000,-1231.38,0.00027675,2]
[425923078,1782036656000,-625.92681017,0.00027802,2]
[425923080,1782036656000,-500.0,0.00027802,2]
[425923074,1782036656000,-1000.0,0.00027675,2]
[425923095,1782036656000,-511.62547427,0.00027944,2]
[425923081,1782036656000,-500.0,0.00027802,2]
[425923082,1782036656000,-152.0,0.00027802,2]
[425923085,1782036656000,-151.0,0.00027802,2]
[425923089,1782036656000,-151.0,0.00027912,2]
[425923086,1782036656000,-282.67227479,0.00027802,2]
[425923090,1782036656000,-200.0,0.00027936,2]
[425923092,1782036656000,-1428.58,0.00027944,2]
[425923096,1782036656000,-735.98,0.00027944,2]
[425923094,1782036656000,-1428.58,0.00027944,2]
[425923093,1782036656000,-1428.58,0.00027944,2]
[425923091,1782036656000,-500.0,0.00027944,2]
[425923088,1782036656000,-151.0,0.00027857,2]
[425923083,1782036656000,-152.0,0.00027802,2]
[425923122,1782036656000,-1087.51,0.00027945,2]
[425923117,1782036656000,-500.0,0.00027945,2]
[425923125,1782036656000,-500.0,0.00027945,2]
[425923155,1782036656000,-500.0,0.00027945,2]
[425923156,1782036656000,-837.02,0.00027945,2]
[425923159,1782036656000,-500.0,0.00027945,2]
[425923161,1782036656000,-500.0,0.00027945,2]
[425923157,1782036656000,-500.0,0.00027945,2]
[425923158,1782036656000,-500.0,0.00027945,2]
[425923160,1782036656000,-500.0,0.00027945,2]
[425923162,1782036656000,-500.0,0.00027945,2]
[425923163,1782036656000,-500.0,0.00027945,2]
[425923165,1782036656000,-500.0,0.00027945,2]
[425923164,1782036656000,-877.63,0.00027945,2]
[425923152,1782036656000,-500.0,0.00027945,2]
[425923166,1782036656000,-500.0,0.00027945,2]
[425923170,1782036656000,-613.12211302,0.00027945,2]
[425923169,1782036656000,-500.0,0.00027945,2]
[425923171,1782036656000,-500.0,0.00027945,2]
[425923173,1782036656000,-500.0,0.00027945,2]
[425923178,1782036656000,-500.0,0.00027945,2]
[425923172,1782036656000,-500.0,0.00027945,2]
[425923174,1782036656000,-500.0,0.00027945,2]
[425923175,1782036656000,-500.0,0.00027945,2]
[425923176,1782036656000,-500.0,0.00027945,2]
[425923177,1782036656000,-500.0,0.00027945,2]
[425923127,1782036656000,-403.29947283,0.00027945,2]
[425923168,1782036656000,-500.0,0.00027945,2]
[425923154,1782036656000,-500.0,0.00027945,2]
[425923167,1782036656000,-500.0,0.00027945,2]
[425923151,1782036656000,-338.12997869,0.00027945,2]
[425923153,1782036656000,-500.0,0.00027945,2]
[425923128,1782036656000,-500.0,0.00027945,2]
[425923124,1782036656000,-500.0,0.00027945,2]
[425923129,1782036656000,-543.45,0.00027945,2]
[425923126,1782036656000,-500.0,0.00027945,2]
[425923130,1782036656000,-500.0,0.00027945,2]
[425923132,1782036656000,-500.0,0.00027945,2]
[425923133,1782036656000,-550.18,0.00027945,2]
[425923136,1782036656000,-500.0,0.00027945,2]
[425923134,1782036656000,-500.0,0.00027945,2]
[425923138,1782036656000,-500.0,0.00027945,2]
[425923131,1782036656000,-500.0,0.00027945,2]
[425923139,1782036656000,-500.0,0.00027945,2]
[425923137,1782036656000,-500.0,0.00027945,2]
[425923135,1782036656000,-500.0,0.00027945,2]
[425923148,1782036656000,-622.11459867,0.00027945,2]
[425923150,1782036656000,-500.0,0.00027945,2]
[425923142,1782036656000,-500.0,0.00027945,2]
[425923143,1782036656000,-500.0,0.00027945,2]
[425923147,1782036656000,-500.0,0.00027945,2]
[425923140,1782036656000,-500.0,0.00027945,2]
[425923146,1782036656000,-500.0,0.00027945,2]
[425923149,1782036656000,-500.0,0.00027945,2]
[425923144,1782036656000,-500.0,0.00027945,2]
[425923141,1782036656000,-500.0,0.00027945,2]
[425923145,1782036656000,-1089.19,0.00027945,2]
[425923216,1782036657000,-500.0,0.00027945,2]
[425923218,1782036657000,-500.0,0.00027945,2]
[425923213,1782036657000,-401.92435311,0.00027945,2]
[425923212,1782036657000,-500.0,0.00027945,2]
[425923208,1782036657000,-500.0,0.00027945,2]
[425923217,1782036657000,-500.0,0.00027945,2]
[425923215,1782036657000,-500.0,0.00027945,2]
[425923210,1782036657000,-500.0,0.00027945,2]
[425923220,1782036657000,-500.0,0.00027945,2]
[425923211,1782036657000,-500.0,0.00027945,2]
[425923214,1782036657000,-500.0,0.00027945,2]
[425923219,1782036657000,-500.0,0.00027945,2]
[425923222,1782036657000,-500.0,0.00027945,2]
[425923237,1782036657000,-500.0,0.00027945,2]
[425923232,1782036657000,-500.0,0.00027945,2]
[425923221,1782036657000,-500.0,0.00027945,2]
[425923223,1782036657000,-500.0,0.00027945,2]
[425923231,1782036657000,-500.0,0.00027945,2]
[425923228,1782036657000,-500.0,0.00027945,2]
[425923230,1782036657000,-500.0,0.00027945,2]
[425923225,1782036657000,-673.93,0.00027945,2]
[425923224,1782036657000,-500.0,0.00027945,2]
[425923227,1782036657000,-605.32,0.00027945,2]
[425923229,1782036657000,-500.0,0.00027945,2]
[425923234,1782036657000,-500.0,0.00027945,2]
[425923209,1782036657000,-555.47,0.00027945,2]
[425923233,1782036657000,-500.0,0.00027945,2]
[425923206,1782036657000,-835.47,0.00027945,2]
[425923181,1782036657000,-500.0,0.00027945,2]
[425923205,1782036657000,-500.0,0.00027945,2]
[425923183,1782036657000,-500.0,0.00027945,2]
[425923243,1782036657000,-500.0,0.00027945,2]
[425923182,1782036657000,-500.0,0.00027945,2]
[425923179,1782036657000,-242.61854967,0.00027945,2]
[425923180,1782036657000,-500.0,0.00027945,2]
[425923184,1782036657000,-552.91,0.00027945,2]
[425923186,1782036657000,-688.76,0.00027945,2]
[425923189,1782036657000,-500.0,0.00027945,2]
[425923188,1782036657000,-500.0,0.00027945,2]
[425923191,1782036657000,-500.0,0.00027945,2]
[425923187,1782036657000,-500.0,0.00027945,2]
[425923185,1782036657000,-500.0,0.00027945,2]
[425923203,1782036657000,-500.0,0.00027945,2]
[425923190,1782036657000,-500.0,0.00027945,2]
[425923194,1782036657000,-500.0,0.00027945,2]
[425923195,1782036657000,-500.0,0.00027945,2]
[425923193,1782036657000,-500.0,0.00027945,2]
[425923207,1782036657000,-500.0,0.00027945,2]
[425923196,1782036657000,-671.07,0.00027945,2]
[425923197,1782036657000,-500.0,0.00027945,2]
[425923202,1782036657000,-500.0,0.00027945,2]
[425923204,1782036657000,-500.0,0.00027945,2]
[425923201,1782036657000,-500.0,0.00027945,2]
[425923199,1782036657000,-500.0,0.00027945,2]
[425923200,1782036657000,-500.0,0.00027945,2]
[425923198,1782036657000,-1101.32,0.00027945,2]
[425923192,1782036657000,-500.0,0.00027945,2]
[425923239,1782036657000,-500.0,0.00027945,2]
[425923226,1782036657000,-500.0,0.00027945,2]
[425923244,1782036657000,-500.0,0.00027945,2]
[425923269,1782036657000,-500.0,0.00027945,2]
[425923271,1782036657000,-687.18,0.00027945,2]
[425923272,1782036657000,-536.39360677,0.00027945,2]
[425923274,1782036657000,-641.52,0.00027945,2]
[425923278,1782036657000,-500.0,0.00027945,2]
[425923275,1782036657000,-258.69455579,0.00027945,2]
[425923273,1782036657000,-694.81,0.00027945,2]
[425923276,1782036657000,-500.0,0.00027945,2]
[425923277,1782036657000,-500.0,0.00027945,2]
[425923280,1782036657000,-693.69,0.00027945,2]
[425923279,1782036657000,-500.0,0.00027945,2]
[425923281,1782036657000,-500.0,0.00027945,2]
[425923283,1782036657000,-553.65,0.00027945,2]
[425923282,1782036657000,-500.0,0.00027945,2]
[425923285,1782036657000,-516.71,0.00027945,2]
[425923284,1782036657000,-599.45,0.00027945,2]
[425923286,1782036657000,-500.0,0.00027945,2]
[425923288,1782036657000,-500.0,0.00027945,2]
[425923287,1782036657000,-1198.9,0.00027945,2]
[425923289,1782036657000,-500.0,0.00027945,2]
[425923291,1782036657000,-172.722659,0.00027945,7]
[425923294,1782036657000,-500.0,0.00027945,2]
[425923293,1782036657000,-500.0,0.00027945,2]
[425923292,1782036657000,-500.0,0.00027945,2]
[425923295,1782036657000,-500.0,0.00027945,2]
[425923238,1782036657000,-500.0,0.00027945,2]
[425923296,1782036657000,-500.0,0.00027945,2]
[425923270,1782036657000,-500.0,0.00027945,2]
[425923260,1782036657000,-500.0,0.00027945,2]
[425923290,1782036657000,-500.0,0.00027945,2]
[425923259,1782036657000,-500.0,0.00027945,2]
[425923240,1782036657000,-925.07,0.00027945,2]
[425923241,1782036657000,-500.0,0.00027945,2]
[425923265,1782036657000,-500.0,0.00027945,2]
[425923236,1782036657000,-376.42492237,0.00027945,2]
[425923245,1782036657000,-500.0,0.00027945,2]
[425923242,1782036657000,-500.0,0.00027945,2]
[425923235,1782036657000,-500.0,0.00027945,2]
[425923248,1782036657000,-500.0,0.00027945,2]
[425923253,1782036657000,-500.0,0.00027945,2]
[425923246,1782036657000,-682.66,0.00027945,2]
[425923249,1782036657000,-3192.54,0.00027945,2]
[425923250,1782036657000,-500.0,0.00027945,2]
[425923252,1782036657000,-500.0,0.00027945,2]
[425923247,1782036657000,-500.0,0.00027945,2]
[425923251,1782036657000,-500.0,0.00027945,2]
[425923258,1782036657000,-500.0,0.00027945,2]
[425923268,1782036657000,-500.0,0.00027945,2]
[425923255,1782036657000,-512.62,0.00027945,2]
[425923266,1782036657000,-500.0,0.00027945,2]
[425923257,1782036657000,-500.0,0.00027945,2]
[425923261,1782036657000,-500.0,0.00027945,2]
[425923267,1782036657000,-500.0,0.00027945,2]
[425923262,1782036657000,-500.0,0.00027945,2]
[425923264,1782036657000,-500.0,0.00027945,2]
[425923256,1782036657000,-500.0,0.00027945,2]
[425923254,1782036657000,-500.0,0.00027945,2]
[425923263,1782036657000,-622.17253193,0.00027945,2]
[425923337,1782036658000,-500.0,0.00027945,2]
[425923333,1782036658000,-500.0,0.00027945,2]
[425923334,1782036658000,-500.0,0.00027945,2]
[425923336,1782036658000,-500.0,0.00027945,2]
[425923335,1782036658000,-603.21825361,0.00027945,2]
[425923330,1782036658000,-500.0,0.00027945,2]
[425923332,1782036658000,-519.87,0.00027945,2]
[425923341,1782036658000,-500.0,0.00027945,2]
[425923342,1782036658000,-500.0,0.00027945,2]
[425923338,1782036658000,-500.0,0.00027945,2]
[425923331,1782036658000,-500.0,0.00027945,2]
[425923339,1782036658000,-635.0,0.00027945,2]
[425923340,1782036658000,-500.0,0.00027945,2]
[425923355,1782036658000,-500.0,0.00027945,2]
[425923347,1782036658000,-500.0,0.00027945,2]
[425923343,1782036658000,-500.0,0.00027945,2]
[425923345,1782036658000,-500.0,0.00027945,2]
[425923352,1782036658000,-500.0,0.00027945,2]
[425923350,1782036658000,-500.0,0.00027945,2]
[425923354,1782036658000,-592.75,0.00027945,2]
[425923351,1782036658000,-500.0,0.00027945,2]
[425923349,1782036658000,-500.0,0.00027945,2]
[425923348,1782036658000,-500.0,0.00027945,2]
[425923353,1782036658000,-231.74,0.00027945,2]
[425923344,1782036658000,-500.0,0.00027945,2]
[425923356,1782036658000,-161.00287,0.00027945,2]
[425923320,1782036658000,-500.0,0.00027945,2]
[425923346,1782036658000,-500.0,0.00027945,2]
[425923327,1782036658000,-500.0,0.00027945,2]
[425923302,1782036658000,-845.41,0.00027945,2]
[425923329,1782036658000,-768.15,0.00027945,2]
[425923357,1782036658000,-500.0,0.00027945,2]
[425923298,1782036658000,-500.0,0.00027945,2]
[425923297,1782036658000,-500.0,0.00027945,2]
[425923299,1782036658000,-500.0,0.00027945,2]
[425923301,1782036658000,-500.0,0.00027945,2]
[425923300,1782036658000,-500.0,0.00027945,2]
[425923304,1782036658000,-500.0,0.00027945,2]
[425923314,1782036658000,-500.0,0.00027945,2]
[425923315,1782036658000,-500.0,0.00027945,2]
[425923310,1782036658000,-500.0,0.00027945,2]
[425923307,1782036658000,-500.0,0.00027945,2]
[425923303,1782036658000,-500.0,0.00027945,2]
[425923305,1782036658000,-500.0,0.00027945,2]
[425923308,1782036658000,-500.0,0.00027945,2]
[425923313,1782036658000,-500.0,0.00027945,2]
[425923316,1782036658000,-500.0,0.00027945,2]
[425923306,1782036658000,-500.0,0.00027945,2]
[425923309,1782036658000,-583.47,0.00027945,2]
[425923312,1782036658000,-561.51,0.00027945,2]
[425923311,1782036658000,-500.0,0.00027945,2]
[425923317,1782036658000,-500.0,0.00027945,2]
[425923318,1782036658000,-500.0,0.00027945,2]
[425923319,1782036658000,-500.0,0.00027945,2]
[425923321,1782036658000,-500.0,0.00027945,2]
[425923322,1782036658000,-500.0,0.00027945,2]
[425923326,1782036658000,-500.0,0.00027945,2]
[425923325,1782036658000,-686.88,0.00027945,2]
[425923328,1782036658000,-500.0,0.00027945,2]
[425923324,1782036658000,-392.95391784,0.00027945,2]
[425923323,1782036658000,-500.0,0.00027945,2]
[425923361,1782036658000,-500.0,0.00027945,2]
[425923378,1782036658000,-779.55,0.00027945,2]
[425923363,1782036658000,-500.0,0.00027945,2]
[425923402,1782036658000,-500.0,0.00027945,2]
[425923394,1782036658000,-500.0,0.00027945,2]
[425923401,1782036658000,-500.0,0.00027945,2]
[425923397,1782036658000,-500.0,0.00027945,2]
[425923395,1782036658000,-910.29,0.00027945,2]
[425923396,1782036658000,-241.34251803,0.00027945,2]
[425923399,1782036658000,-500.0,0.00027945,2]
[425923398,1782036658000,-500.0,0.00027945,2]
[425923400,1782036658000,-500.0,0.00027945,2]
[425923403,1782036658000,-500.0,0.00027945,2]
[425923405,1782036658000,-763.08,0.00027945,2]
[425923408,1782036658000,-500.0,0.00027945,2]
[425923410,1782036658000,-500.0,0.00027945,2]
[425923393,1782036658000,-500.0,0.00027945,2]
[425923406,1782036658000,-500.0,0.00027945,2]
[425923415,1782036658000,-500.0,0.00027945,2]
[425923411,1782036658000,-598.45,0.00027945,2]
[425923409,1782036658000,-500.0,0.00027945,2]
[425923407,1782036658000,-500.0,0.00027945,2]
[425923404,1782036658000,-500.0,0.00027945,2]
[425923413,1782036658000,-500.0,0.00027945,2]
[425923412,1782036658000,-974.4,0.00027945,2]
[425923417,1782036658000,-947.58,0.00027945,2]
[425923419,1782036658000,-500.0,0.00027945,2]
[425923418,1782036658000,-500.0,0.00027945,2]
[425923420,1782036658000,-500.0,0.00027945,2]
[425923421,1782036658000,-509.77,0.00027945,2]
[425923365,1782036658000,-500.0,0.00027945,2]
[425923414,1782036658000,-500.0,0.00027945,2]
[425923392,1782036658000,-500.0,0.00027945,2]
[425923416,1782036658000,-1321.35,0.00027945,2]
[425923390,1782036658000,-590.01479161,0.00027945,2]
[425923358,1782036658000,-500.0,0.00027945,2]